[Event "December 19 Early 2023"]
[Site "https://www.chess.com"]
[Date "2023.12.19"]
[Round "4"]
[White "Petrukhina, Olga"]
[Black "Hrebenshchykova, Yelyzaveta"]
[Result "1-0"]
[Board "173"]
[TimeControl "180+1"]
[WhiteFideId "13703935"]
[BlackFideId "14159899"]
[WhiteElo "1991"]
[BlackElo "2045"]
[WhiteTeam "KAZ"]
[BlackTeam "UKR"]
[WhiteClock "0:00:09"]
[BlackClock "0:00:00"]

1. d4 {[%clk 0:03:00]}  Nf6 {[%clk 0:02:49]} 2. c4 {[%clk 0:03:00]}  g6 {[%clk 0:02:47]} 3. Nc3 {[%clk 0:03:00]}  d5 {[%clk 0:02:47]} 4. Nf3 {[%clk 0:03:00]}  Bg7 {[%clk 0:02:47]} 5. Bg5 {[%clk 0:02:59]}  Ne4 {[%clk 0:02:46]} 6. Bh4 {[%clk 0:02:59]}  Nxc3 {[%clk 0:02:44]} 7. bxc3 {[%clk 0:02:59]}  c5 {[%clk 0:02:29]} 8. e3 {[%clk 0:02:59]}  Nc6 {[%clk 0:02:27]} 9. cxd5 {[%clk 0:02:56]}  Qxd5 {[%clk 0:02:26]} 10. Be2 {[%clk 0:02:55]}  cxd4 {[%clk 0:02:20]} 11. cxd4 {[%clk 0:02:56]}  O-O {[%clk 0:02:19]} 12. O-O {[%clk 0:02:55]}  Bf5 {[%clk 0:02:05]} 13. Bg3 {[%clk 0:02:43]}  Rac8 {[%clk 0:02:00]} 14. Qa4 {[%clk 0:02:34]}  a6 {[%clk 0:01:50]} 15. Rfc1 {[%clk 0:02:30]}  b5 {[%clk 0:01:50]} 16. Qxa6 {[%clk 0:02:06]}  Nb4 {[%clk 0:01:35]} 17. Qxb5 {[%clk 0:01:57]}  Qxb5 {[%clk 0:01:24]} 18. Bxb5 {[%clk 0:01:58]}  Nc2 {[%clk 0:01:24]} 19. a4 {[%clk 0:00:38]}  Nxa1 {[%clk 0:01:22]} 20. Rxa1 {[%clk 0:00:39]}  f6 {[%clk 0:00:48]} 21. Nd2 {[%clk 0:00:29]}  e5 {[%clk 0:00:48]} 22. e4 {[%clk 0:00:18]}  Be6 {[%clk 0:00:48]} 23. d5 {[%clk 0:00:18]}  Bf7 {[%clk 0:00:48]} 24. Nc4 {[%clk 0:00:18]}  f5 {[%clk 0:00:43]} 25. f3 {[%clk 0:00:16]}  fxe4 {[%clk 0:00:30]} 26. fxe4 {[%clk 0:00:17]}  g5 {[%clk 0:00:22]} 27. Bxe5 {[%clk 0:00:11]}  Bg6 {[%clk 0:00:21]} 28. Bxg7 {[%clk 0:00:11]}  Kxg7 {[%clk 0:00:22]} 29. e5 {[%clk 0:00:09]}  Rf4 {[%clk 0:00:18]} 30. d6 {[%clk 0:00:08]}  Bf5 {[%clk 0:00:04]} 31. Rc1 {[%clk 0:00:04]}  Be6 {[%clk 0:00:03]} 32. d7 {[%clk 0:00:04]}  Rd8 {[%clk 0:00:03]} 33. a5 {[%clk 0:00:02]}  Bxd7 {[%clk 0:00:04]} 34. Bxd7 {[%clk 0:00:02]}  Rxd7 {[%clk 0:00:04]} 35. a6 {[%clk 0:00:03]}  Ra7 {[%clk 0:00:05]} 36. Rc3 {[%clk 0:00:01]}  Rxa6 {[%clk 0:00:05]} 37. g3 {[%clk 0:00:02]}  Re4 {[%clk 0:00:05]} 38. Kf2 {[%clk 0:00:02]}  Re6 {[%clk 0:00:04]} 39. Kf3 {[%clk 0:00:01]}  Rd4 {[%clk 0:00:05]} 40. Ke3 {[%clk 0:00:02]}  Rd8 {[%clk 0:00:05]} 41. Ke4 {[%clk 0:00:02]}  h6 {[%clk 0:00:04]} 42. Ne3 {[%clk 0:00:02]}  Rde8 {[%clk 0:00:03]} 43. Rc7+ {[%clk 0:00:02]}  R6e7 {[%clk 0:00:03]} 44. Rxe7+ {[%clk 0:00:01]}  Rxe7 {[%clk 0:00:04]} 45. Nf5+ {[%clk 0:00:01]}  Kf7 {[%clk 0:00:05]} 46. Nxe7 {[%clk 0:00:02]}  Kxe7 {[%clk 0:00:06]} 47. Kf5 {[%clk 0:00:02]}  Kf7 {[%clk 0:00:05]} 48. e6+ {[%clk 0:00:03]}  Ke7 {[%clk 0:00:06]} 49. Ke5 {[%clk 0:00:04]}  g4 {[%clk 0:00:07]} 50. Kf5 {[%clk 0:00:04]}  h5 {[%clk 0:00:06]} 51. Kg5 {[%clk 0:00:04]}  Kxe6 {[%clk 0:00:07]} 52. Kh4 {[%clk 0:00:05]}  Kf6 {[%clk 0:00:06]} 53. Kxh5 {[%clk 0:00:06]}  Kf5 {[%clk 0:00:07]} 54. Kh4 {[%clk 0:00:06]}  Kf6 {[%clk 0:00:05]} 55. Kxg4 {[%clk 0:00:07]}  Kg6 {[%clk 0:00:06]} 56. h4 {[%clk 0:00:08]}  Kh6 {[%clk 0:00:00]} 57. h5 {[%clk 0:00:09]} 1-0

[Event "December 19 Early 2023"]
[Site "https://www.chess.com"]
[Date "2023.12.19"]
[Round "4"]
[White "Fernandez Sanchez, Mario Andres"]
[Black "Nilsen, Tobias Lang"]
[Result "0-1"]
[Board "177"]
[TimeControl "180+1"]
[WhiteFideId "6501621"]
[BlackFideId "1521624"]
[WhiteElo "2050"]
[BlackElo "2221"]
[WhiteTeam "CRC"]
[BlackTeam "NOR"]
[WhiteClock "0:00:00"]
[BlackClock "0:00:06"]

1. d4 {[%clk 0:03:00]}  Nf6 {[%clk 0:02:59]} 2. Nc3 {[%clk 0:03:00]}  c5 {[%clk 0:02:59]} 3. d5 {[%clk 0:03:00]}  d6 {[%clk 0:03:00]} 4. e4 {[%clk 0:02:59]}  g6 {[%clk 0:03:01]} 5. Be2 {[%clk 0:02:56]}  Bg7 {[%clk 0:03:01]} 6. Nf3 {[%clk 0:02:56]}  O-O {[%clk 0:03:01]} 7. O-O {[%clk 0:02:55]}  e6 {[%clk 0:03:01]} 8. Nd2 {[%clk 0:02:54]}  e5 {[%clk 0:03:01]} 9. Nc4 {[%clk 0:02:52]}  Ne8 {[%clk 0:02:58]} 10. a4 {[%clk 0:02:50]}  f5 {[%clk 0:02:47]} 11. f3 {[%clk 0:02:45]}  f4 {[%clk 0:02:47]} 12. a5 {[%clk 0:02:38]}  g5 {[%clk 0:02:45]} 13. Nb5 {[%clk 0:02:31]}  Rf6 {[%clk 0:02:40]} 14. c3 {[%clk 0:02:26]}  Bf8 {[%clk 0:02:35]} 15. b4 {[%clk 0:02:23]}  Nd7 {[%clk 0:02:33]} 16. Bd2 {[%clk 0:02:09]}  h5 {[%clk 0:02:22]} 17. Be1 {[%clk 0:02:08]}  Rg6 {[%clk 0:02:17]} 18. Rf2 {[%clk 0:02:03]}  g4 {[%clk 0:02:16]} 19. Rf1 {[%clk 0:02:02]}  a6 {[%clk 0:01:43]} 20. Nba3 {[%clk 0:01:59]}  Qg5 {[%clk 0:01:41]} 21. Kh1 {[%clk 0:01:55]}  cxb4 {[%clk 0:01:37]} 22. cxb4 {[%clk 0:01:55]}  Ndf6 {[%clk 0:01:37]} 23. Rg1 {[%clk 0:01:43]}  g3 {[%clk 0:01:30]} 24. h3 {[%clk 0:01:40]}  Qh4 {[%clk 0:01:10]} 25. Bf1 {[%clk 0:01:37]}  Nh7 {[%clk 0:01:09]} 26. Qa4 {[%clk 0:01:09]}  Bxh3 {[%clk 0:00:40]} 27. gxh3 {[%clk 0:01:06]}  Ng5 {[%clk 0:00:40]} 28. Qd7 {[%clk 0:01:00]}  Nxf3 {[%clk 0:00:26]} 29. Bg2 {[%clk 0:00:55]}  Nxg1 {[%clk 0:00:19]} 30. Kxg1 {[%clk 0:00:56]}  Rd8 {[%clk 0:00:17]} 31. Qxb7 {[%clk 0:00:39]}  f3 {[%clk 0:00:16]} 32. Ne3 {[%clk 0:00:24]}  fxg2 {[%clk 0:00:13]} 33. Nxg2 {[%clk 0:00:22]}  Qxh3 {[%clk 0:00:13]} 34. Bxg3 {[%clk 0:00:17]}  Qxg3 {[%clk 0:00:14]} 35. Ra2 {[%clk 0:00:17]}  Bh6 {[%clk 0:00:09]} 36. Qe7 {[%clk 0:00:13]}  Be3+ {[%clk 0:00:09]} 37. Kf1 {[%clk 0:00:10]}  Qf3+ {[%clk 0:00:08]} 38. Ke1 {[%clk 0:00:00]}  Rc8 {[%clk 0:00:06]} 0-1

[Event "December 19 Early 2023"]
[Site "https://www.chess.com"]
[Date "2023.12.19"]
[Round "4"]
[White "Kashtanov, Ruslan"]
[Black "Franchini, Gabriele"]
[Result "1-0"]
[Board "183"]
[TimeControl "180+1"]
[WhiteFideId "4124871"]
[BlackFideId "806790"]
[WhiteElo "2263"]
[BlackElo "2215"]
[WhiteTeam "RUS"]
[BlackTeam "ITA"]
[WhiteClock "0:00:49"]
[BlackClock "0:00:04"]

1. e4 {[%clk 0:02:58]}  e6 {[%clk 0:02:59]} 2. d4 {[%clk 0:02:58]}  d5 {[%clk 0:03:00]} 3. Nd2 {[%clk 0:02:58]}  c5 {[%clk 0:03:00]} 4. Ngf3 {[%clk 0:02:57]}  cxd4 {[%clk 0:02:59]} 5. Nxd4 {[%clk 0:02:56]}  Nc6 {[%clk 0:02:59]} 6. Bb5 {[%clk 0:02:55]}  Bd7 {[%clk 0:03:00]} 7. Nxc6 {[%clk 0:02:55]}  Bxc6 {[%clk 0:03:01]} 8. Bxc6+ {[%clk 0:02:54]}  bxc6 {[%clk 0:03:02]} 9. c4 {[%clk 0:02:54]}  Bc5 {[%clk 0:02:58]} 10. Qa4 {[%clk 0:02:45]}  Qd7 {[%clk 0:02:35]} 11. O-O {[%clk 0:02:43]}  Ne7 {[%clk 0:02:25]} 12. Nb3 {[%clk 0:02:37]}  Bd6 {[%clk 0:02:21]} 13. Rd1 {[%clk 0:02:27]}  Rd8 {[%clk 0:02:05]} 14. Be3 {[%clk 0:02:19]}  Nc8 {[%clk 0:01:33]} 15. Nc5 {[%clk 0:01:26]}  Bxc5 {[%clk 0:00:53]} 16. Bxc5 {[%clk 0:01:24]}  Nb6 {[%clk 0:00:54]} 17. Qa6 {[%clk 0:01:06]}  Nxc4 {[%clk 0:00:48]} 18. Rac1 {[%clk 0:01:05]}  Nxb2 {[%clk 0:00:39]} 19. Rd2 {[%clk 0:01:04]}  Rb8 {[%clk 0:00:34]} 20. Rb1 {[%clk 0:00:54]}  Qc8 {[%clk 0:00:15]} 21. Qxc8+ {[%clk 0:00:52]}  Rxc8 {[%clk 0:00:16]} 22. Rbxb2 {[%clk 0:00:49]}  dxe4 {[%clk 0:00:04]} 23. Rb7 {[%clk 0:00:49]} 1-0

[Event "December 19 Early 2023"]
[Site "https://www.chess.com"]
[Date "2023.12.19"]
[Round "4"]
[White "Omariev, Maksim"]
[Black "Chemin, Justo Reinaldo"]
[Result "1-0"]
[Board "186"]
[TimeControl "180+1"]
[WhiteFideId "4193423"]
[BlackFideId "2101580"]
[WhiteElo "2453"]
[BlackElo "1940"]
[WhiteTeam "RUS"]
[BlackTeam "BRA"]
[WhiteClock "0:00:20"]
[BlackClock "0:00:00"]

1. e4 {[%clk 0:02:59]}  d5 {[%clk 0:03:00]} 2. exd5 {[%clk 0:02:59]}  Qxd5 {[%clk 0:03:00]} 3. Nf3 {[%clk 0:02:58]}  Nf6 {[%clk 0:02:58]} 4. d4 {[%clk 0:02:54]}  Bg4 {[%clk 0:02:52]} 5. Be2 {[%clk 0:02:55]}  Nc6 {[%clk 0:02:46]} 6. c4 {[%clk 0:02:52]}  Qd8 {[%clk 0:02:39]} 7. d5 {[%clk 0:02:43]}  Bxf3 {[%clk 0:02:33]} 8. gxf3 {[%clk 0:02:39]}  Ne5 {[%clk 0:02:30]} 9. f4 {[%clk 0:02:30]}  Ng6 {[%clk 0:02:16]} 10. h4 {[%clk 0:02:12]}  Qd6 {[%clk 0:02:09]} 11. Qd2 {[%clk 0:01:55]}  h5 {[%clk 0:02:03]} 12. Nc3 {[%clk 0:01:40]}  a6 {[%clk 0:01:58]} 13. f5 {[%clk 0:01:35]}  Ne5 {[%clk 0:01:49]} 14. Qd4 {[%clk 0:01:26]}  e6 {[%clk 0:01:33]} 15. Bf4 {[%clk 0:01:03]}  Nfd7 {[%clk 0:01:11]} 16. fxe6 {[%clk 0:00:59]}  fxe6 {[%clk 0:01:08]} 17. c5 {[%clk 0:00:36]}  Qxc5 {[%clk 0:00:39]} 18. Bxe5 {[%clk 0:00:35]}  Qxd4 {[%clk 0:00:39]} 19. Bxd4 {[%clk 0:00:36]}  e5 {[%clk 0:00:35]} 20. Be3 {[%clk 0:00:35]}  O-O-O {[%clk 0:00:35]} 21. O-O-O {[%clk 0:00:34]}  Nf6 {[%clk 0:00:34]} 22. Bd3 {[%clk 0:00:21]}  Bb4 {[%clk 0:00:33]} 23. Bf5+ {[%clk 0:00:20]}  Kb8 {[%clk 0:00:33]} 24. Be6 {[%clk 0:00:21]}  Rhe8 {[%clk 0:00:23]} 25. a3 {[%clk 0:00:22]}  Bxc3 {[%clk 0:00:16]} 26. bxc3 {[%clk 0:00:22]}  c6 {[%clk 0:00:15]} 27. c4 {[%clk 0:00:22]}  cxd5 {[%clk 0:00:15]} 28. cxd5 {[%clk 0:00:23]}  Ne4 {[%clk 0:00:14]} 29. Kb2 {[%clk 0:00:22]}  Nd6 {[%clk 0:00:07]} 30. Rc1 {[%clk 0:00:20]}  Nb5 {[%clk 0:00:03]} 31. a4 {[%clk 0:00:19]}  Nc7 {[%clk 0:00:03]} 32. Bb6 {[%clk 0:00:20]}  Nxe6 {[%clk 0:00:00]} 33. dxe6 {[%clk 0:00:20]} 1-0

[Event "December 19 Early 2023"]
[Site "https://www.chess.com"]
[Date "2023.12.19"]
[Round "4"]
[White "Kiseleva, Arina"]
[Black "Perossa, Nicolas"]
[Result "0-1"]
[Board "191"]
[TimeControl "180+1"]
[WhiteFideId "4164989"]
[BlackFideId "2850520"]
[WhiteElo "1740"]
[BlackElo "1934"]
[WhiteTeam "RUS"]
[BlackTeam "ITA"]
[WhiteClock "0:00:00"]
[BlackClock "0:00:04"]

1. d4 {[%clk 0:03:00]}  d6 {[%clk 0:02:55]} 2. g3 {[%clk 0:02:56]}  e5 {[%clk 0:02:54]} 3. Bg2 {[%clk 0:02:56]}  exd4 {[%clk 0:02:54]} 4. Qxd4 {[%clk 0:02:55]}  Nc6 {[%clk 0:02:54]} 5. Qd1 {[%clk 0:02:51]}  Nf6 {[%clk 0:02:54]} 6. Nf3 {[%clk 0:02:48]}  Be7 {[%clk 0:02:55]} 7. O-O {[%clk 0:02:49]}  O-O {[%clk 0:02:55]} 8. b3 {[%clk 0:02:47]}  Re8 {[%clk 0:02:55]} 9. Bb2 {[%clk 0:02:47]}  Bf5 {[%clk 0:02:55]} 10. Nd4 {[%clk 0:02:42]}  Nxd4 {[%clk 0:02:55]} 11. Qxd4 {[%clk 0:02:41]}  c6 {[%clk 0:02:55]} 12. c4 {[%clk 0:02:37]}  Bf8 {[%clk 0:02:51]} 13. e3 {[%clk 0:02:33]}  Be4 {[%clk 0:02:48]} 14. Nd2 {[%clk 0:02:26]}  Bxg2 {[%clk 0:02:48]} 15. Kxg2 {[%clk 0:02:26]}  Qd7 {[%clk 0:02:48]} 16. Rad1 {[%clk 0:02:24]}  Qf5 {[%clk 0:02:47]} 17. Nf3 {[%clk 0:02:16]}  Re4 {[%clk 0:02:45]} 18. Qd3 {[%clk 0:02:14]}  Rae8 {[%clk 0:02:29]} 19. Nd2 {[%clk 0:01:49]}  Rf4 {[%clk 0:02:20]} 20. e4 {[%clk 0:01:39]}  Qg6 {[%clk 0:02:03]} 21. Bxf6 {[%clk 0:01:27]}  Rxf6 {[%clk 0:02:03]} 22. f4 {[%clk 0:01:22]}  Qh5 {[%clk 0:01:57]} 23. Nf3 {[%clk 0:01:17]}  Qg4 {[%clk 0:01:55]} 24. h3 {[%clk 0:01:07]}  Qh5 {[%clk 0:01:55]} 25. g4 {[%clk 0:00:53]}  Qa5 {[%clk 0:01:54]} 26. Ng5 {[%clk 0:00:36]}  h6 {[%clk 0:01:21]} 27. e5 {[%clk 0:00:35]}  Rg6 {[%clk 0:01:21]} 28. Nxf7 {[%clk 0:00:33]}  Kxf7 {[%clk 0:01:18]} 29. Qf5+ {[%clk 0:00:31]}  Kg8 {[%clk 0:01:16]} 30. Qxg6 {[%clk 0:00:30]}  Rd8 {[%clk 0:01:10]} 31. e6 {[%clk 0:00:16]}  Qxa2+ {[%clk 0:01:08]} 32. Rf2 {[%clk 0:00:15]}  Qxb3 {[%clk 0:01:08]} 33. Qf7+ {[%clk 0:00:14]}  Kh8 {[%clk 0:00:57]} 34. e7 {[%clk 0:00:12]}  Bxe7 {[%clk 0:00:57]} 35. Qxe7 {[%clk 0:00:12]}  Rg8 {[%clk 0:00:54]} 36. Rxd6 {[%clk 0:00:11]}  Qxc4 {[%clk 0:00:53]} 37. Rd8 {[%clk 0:00:09]}  Rxd8 {[%clk 0:00:43]} 38. Qxd8+ {[%clk 0:00:10]}  Kh7 {[%clk 0:00:44]} 39. Qe7 {[%clk 0:00:07]}  Qd5+ {[%clk 0:00:43]} 40. Kg1 {[%clk 0:00:07]}  Qb3 {[%clk 0:00:33]} 41. Kh2 {[%clk 0:00:06]}  a5 {[%clk 0:00:30]} 42. Qe4+ {[%clk 0:00:06]}  Kh8 {[%clk 0:00:28]} 43. Rd2 {[%clk 0:00:06]}  Qb6 {[%clk 0:00:23]} 44. Qe7 {[%clk 0:00:05]}  Qb1 {[%clk 0:00:04]} 45. Rd8+ {[%clk 0:00:05]}  Kh7 {[%clk 0:00:04]} 46. Qe2 {[%clk 0:00:03]}  b5 {[%clk 0:00:04]} 47. Qd3+ {[%clk 0:00:03]}  Qxd3 {[%clk 0:00:05]} 48. Rxd3 {[%clk 0:00:04]}  c5 {[%clk 0:00:05]} 49. f5 {[%clk 0:00:03]}  c4 {[%clk 0:00:05]} 50. Rd5 {[%clk 0:00:03]}  b4 {[%clk 0:00:03]} 51. Rc5 {[%clk 0:00:02]}  c3 {[%clk 0:00:03]} 52. Kg3 {[%clk 0:00:02]}  a4 {[%clk 0:00:03]} 53. Kf3 {[%clk 0:00:02]}  b3 {[%clk 0:00:04]} 54. Rxc3 {[%clk 0:00:00]}  b2 {[%clk 0:00:04]} 0-1

[Event "December 19 Early 2023"]
[Site "https://www.chess.com"]
[Date "2023.12.19"]
[Round "4"]
[White "Liu, Casper"]
[Black "Quirke, Jeffrey"]
[Result "1-0"]
[Board "193"]
[TimeControl "180+1"]
[WhiteFideId "1454153"]
[BlackFideId "2013029"]
[WhiteElo "2221"]
[BlackElo "2155"]
[WhiteTeam "DEN"]
[BlackTeam "USA"]
[WhiteClock "0:01:07"]
[BlackClock "0:00:12"]

1. f4 {[%clk 0:02:56]}  c5 {[%clk 0:02:58]} 2. Nf3 {[%clk 0:02:57]}  Nc6 {[%clk 0:02:58]} 3. e3 {[%clk 0:02:58]}  g6 {[%clk 0:02:58]} 4. g3 {[%clk 0:02:58]}  Bg7 {[%clk 0:02:59]} 5. Bg2 {[%clk 0:02:59]}  Nf6 {[%clk 0:02:58]} 6. O-O {[%clk 0:03:00]}  O-O {[%clk 0:02:58]} 7. Nc3 {[%clk 0:03:00]}  d6 {[%clk 0:02:58]} 8. d3 {[%clk 0:03:01]}  e5 {[%clk 0:02:56]} 9. Qe1 {[%clk 0:03:00]}  Rb8 {[%clk 0:02:48]} 10. a4 {[%clk 0:02:59]}  b6 {[%clk 0:02:47]} 11. h3 {[%clk 0:02:59]}  Bb7 {[%clk 0:02:47]} 12. g4 {[%clk 0:02:59]}  exf4 {[%clk 0:02:45]} 13. exf4 {[%clk 0:02:58]}  Re8 {[%clk 0:02:45]} 14. Qh4 {[%clk 0:02:58]}  Nb4 {[%clk 0:02:40]} 15. Rf2 {[%clk 0:02:55]}  Nfd5 {[%clk 0:02:35]} 16. Qxd8 {[%clk 0:02:44]}  Rbxd8 {[%clk 0:02:35]} 17. Ne4 {[%clk 0:02:40]}  a6 {[%clk 0:01:56]} 18. g5 {[%clk 0:02:12]}  Ne7 {[%clk 0:01:52]} 19. Ne1 {[%clk 0:02:01]}  d5 {[%clk 0:01:47]} 20. Nf6+ {[%clk 0:01:54]}  Bxf6 {[%clk 0:01:47]} 21. gxf6 {[%clk 0:01:55]}  Nf5 {[%clk 0:01:46]} 22. Bd2 {[%clk 0:01:54]}  Nc6 {[%clk 0:01:42]} 23. c3 {[%clk 0:01:45]}  Re6 {[%clk 0:01:27]} 24. Nf3 {[%clk 0:01:45]}  Rxf6 {[%clk 0:01:25]} 25. Re1 {[%clk 0:01:43]}  Kf8 {[%clk 0:01:16]} 26. Ng5 {[%clk 0:01:42]}  Kg7 {[%clk 0:01:12]} 27. c4 {[%clk 0:01:31]}  h6 {[%clk 0:00:59]} 28. cxd5 {[%clk 0:01:23]}  Ncd4 {[%clk 0:00:51]} 29. Ne4 {[%clk 0:01:20]}  Bxd5 {[%clk 0:00:46]} 30. Nxf6 {[%clk 0:01:20]}  Kxf6 {[%clk 0:00:46]} 31. Be4 {[%clk 0:01:12]}  b5 {[%clk 0:00:38]} 32. axb5 {[%clk 0:01:11]}  axb5 {[%clk 0:00:38]} 33. b4 {[%clk 0:01:12]}  c4 {[%clk 0:00:36]} 34. dxc4 {[%clk 0:01:08]}  bxc4 {[%clk 0:00:36]} 35. Bc3 {[%clk 0:01:09]}  Bxe4 {[%clk 0:00:31]} 36. Rxe4 {[%clk 0:01:10]}  Kg7 {[%clk 0:00:17]} 37. Rd2 {[%clk 0:01:08]}  Kf8 {[%clk 0:00:12]} 38. Rdxd4 {[%clk 0:01:07]} 1-0

[Event "December 19 Early 2023"]
[Site "https://www.chess.com"]
[Date "2023.12.19"]
[Round "4"]
[White "Negron Lizarazo, Juan Sebastian"]
[Black "Uritsky, Yonathan"]
[Result "0-1"]
[Board "194"]
[TimeControl "180+1"]
[WhiteFideId "3936910"]
[BlackFideId "2825651"]
[WhiteElo "1647"]
[BlackElo "2168"]
[WhiteTeam "COL"]
[BlackTeam "ISR"]
[WhiteClock "0:00:05"]
[BlackClock "0:00:08"]

1. e4 {[%clk 0:03:00]}  c6 {[%clk 0:02:59]} 2. d4 {[%clk 0:03:00]}  d5 {[%clk 0:02:59]} 3. e5 {[%clk 0:03:01]}  Bf5 {[%clk 0:02:58]} 4. Nf3 {[%clk 0:03:02]}  e6 {[%clk 0:02:58]} 5. Be2 {[%clk 0:03:02]}  Bg6 {[%clk 0:02:58]} 6. O-O {[%clk 0:03:02]}  Ne7 {[%clk 0:02:58]} 7. c3 {[%clk 0:02:57]}  Nd7 {[%clk 0:02:57]} 8. Nbd2 {[%clk 0:02:55]}  c5 {[%clk 0:02:55]} 9. a3 {[%clk 0:02:52]}  c4 {[%clk 0:02:34]} 10. b3 {[%clk 0:02:44]}  cxb3 {[%clk 0:02:33]} 11. Qxb3 {[%clk 0:02:40]}  Qc7 {[%clk 0:02:16]} 12. c4 {[%clk 0:02:37]}  dxc4 {[%clk 0:02:08]} 13. Nxc4 {[%clk 0:02:35]}  Nd5 {[%clk 0:02:06]} 14. Bd2 {[%clk 0:02:15]}  Be7 {[%clk 0:02:01]} 15. Rfc1 {[%clk 0:02:09]}  O-O {[%clk 0:01:40]} 16. Nd6 {[%clk 0:01:54]}  Qb6 {[%clk 0:01:27]} 17. Qxb6 {[%clk 0:01:45]}  axb6 {[%clk 0:01:28]} 18. Nc4 {[%clk 0:01:30]}  Rfc8 {[%clk 0:01:18]} 19. Bg5 {[%clk 0:01:09]}  Bxg5 {[%clk 0:00:59]} 20. Nxg5 {[%clk 0:01:06]}  Rc6 {[%clk 0:00:55]} 21. Nd6 {[%clk 0:00:58]}  Rxa3 {[%clk 0:00:55]} 22. Bb5 {[%clk 0:00:51]}  Rxa1 {[%clk 0:00:07]} 23. Rxa1 {[%clk 0:00:44]}  Ne7 {[%clk 0:00:03]} 24. Ra8+ {[%clk 0:00:35]}  Nf8 {[%clk 0:00:03]} 25. Bxc6 {[%clk 0:00:33]}  Nxc6 {[%clk 0:00:04]} 26. Nf3 {[%clk 0:00:27]}  Bh5 {[%clk 0:00:04]} 27. Nc4 {[%clk 0:00:23]}  Bxf3 {[%clk 0:00:03]} 28. gxf3 {[%clk 0:00:22]}  Nxd4 {[%clk 0:00:04]} 29. Nxb6 {[%clk 0:00:22]}  Nxf3+ {[%clk 0:00:04]} 30. Kg2 {[%clk 0:00:22]}  Nxe5 {[%clk 0:00:05]} 31. Rb8 {[%clk 0:00:21]}  g6 {[%clk 0:00:05]} 32. f4 {[%clk 0:00:20]}  Nd3 {[%clk 0:00:03]} 33. Nd7 {[%clk 0:00:18]}  Nxf4+ {[%clk 0:00:03]} 34. Kf3 {[%clk 0:00:18]}  Nd5 {[%clk 0:00:03]} 35. Nxf8 {[%clk 0:00:17]}  Kg7 {[%clk 0:00:04]} 36. Nd7 {[%clk 0:00:17]}  Nb4 {[%clk 0:00:02]} 37. Rxb7 {[%clk 0:00:16]}  Nc6 {[%clk 0:00:03]} 38. Nc5 {[%clk 0:00:15]}  Nd4+ {[%clk 0:00:03]} 39. Ke4 {[%clk 0:00:15]}  Nf5 {[%clk 0:00:04]} 40. Nxe6+ {[%clk 0:00:14]}  Kf6 {[%clk 0:00:04]} 41. Rb6 {[%clk 0:00:10]}  fxe6 {[%clk 0:00:04]} 42. Kf4 {[%clk 0:00:09]}  h5 {[%clk 0:00:03]} 43. h3 {[%clk 0:00:07]}  g5+ {[%clk 0:00:04]} 44. Kf3 {[%clk 0:00:06]}  Ke5 {[%clk 0:00:04]} 45. Rb5+ {[%clk 0:00:06]}  Kf6 {[%clk 0:00:05]} 46. Ra5 {[%clk 0:00:06]}  Nd4+ {[%clk 0:00:03]} 47. Ke4 {[%clk 0:00:05]}  Ne2 {[%clk 0:00:03]} 48. Ra8 {[%clk 0:00:03]}  Ng3+ {[%clk 0:00:03]} 49. Kf3 {[%clk 0:00:03]}  Nf5 {[%clk 0:00:04]} 50. Rf8+ {[%clk 0:00:02]}  Kg7 {[%clk 0:00:04]} 51. Re8 {[%clk 0:00:02]}  Kf7 {[%clk 0:00:01]} 52. Ra8 {[%clk 0:00:02]}  Kf6 {[%clk 0:00:02]} 53. Ra7 {[%clk 0:00:03]}  Nd4+ {[%clk 0:00:02]} 54. Ke4 {[%clk 0:00:02]}  Nf5 {[%clk 0:00:03]} 55. Kf3 {[%clk 0:00:02]}  Kg6 {[%clk 0:00:03]} 56. Ke4 {[%clk 0:00:02]}  g4 {[%clk 0:00:03]} 57. Ra8 {[%clk 0:00:03]}  gxh3 {[%clk 0:00:03]} 58. Kf3 {[%clk 0:00:04]}  Kf6 {[%clk 0:00:03]} 59. Rh8 {[%clk 0:00:03]}  Kg5 {[%clk 0:00:03]} 60. Rg8+ {[%clk 0:00:03]}  Kh4 {[%clk 0:00:04]} 61. Rg1 {[%clk 0:00:03]}  h2 {[%clk 0:00:04]} 62. Rh1 {[%clk 0:00:02]}  Kh3 {[%clk 0:00:05]} 63. Kf4 {[%clk 0:00:02]}  Ng3 {[%clk 0:00:06]} 64. Rxh2+ {[%clk 0:00:02]}  Kxh2 {[%clk 0:00:07]} 65. Kg5 {[%clk 0:00:03]}  e5 {[%clk 0:00:07]} 66. Kh4 {[%clk 0:00:04]}  e4 {[%clk 0:00:07]} 67. Kg5 {[%clk 0:00:04]}  e3 {[%clk 0:00:07]} 68. Kh4 {[%clk 0:00:05]}  e2 {[%clk 0:00:08]} 69. Kg5 {[%clk 0:00:06]}  e1=Q {[%clk 0:00:08]} 70. Kh4 {[%clk 0:00:05]}  Qe4+ {[%clk 0:00:08]} 0-1

[Event "December 19 Early 2023"]
[Site "https://www.chess.com"]
[Date "2023.12.19"]
[Round "4"]
[White "Bowden, Karl"]
[Black "Yushko, Olga"]
[Result "1-0"]
[Board "197"]
[TimeControl "180+1"]
[WhiteFideId "400548"]
[BlackFideId "14114500"]
[WhiteElo "2433"]
[BlackElo "1891"]
[WhiteTeam "ENG"]
[BlackTeam "UKR"]
[WhiteClock "0:00:45"]
[BlackClock "0:01:53"]

1. e4 {[%clk 0:02:59]}  e6 {[%clk 0:02:59]} 2. d3 {[%clk 0:02:59]}  d5 {[%clk 0:03:00]} 3. Qe2 {[%clk 0:02:59]}  Be7 {[%clk 0:02:58]} 4. Nf3 {[%clk 0:02:58]}  Nf6 {[%clk 0:02:59]} 5. g3 {[%clk 0:02:56]}  O-O {[%clk 0:02:58]} 6. Bg2 {[%clk 0:02:54]}  c5 {[%clk 0:02:58]} 7. O-O {[%clk 0:02:52]}  Nc6 {[%clk 0:02:59]} 8. e5 {[%clk 0:02:51]}  Nd7 {[%clk 0:02:59]} 9. c4 {[%clk 0:02:51]}  Qc7 {[%clk 0:02:58]} 10. Bf4 {[%clk 0:02:42]}  dxc4 {[%clk 0:02:54]} 11. dxc4 {[%clk 0:02:41]}  Nd4 {[%clk 0:02:54]} 12. Nxd4 {[%clk 0:02:37]}  cxd4 {[%clk 0:02:55]} 13. h4 {[%clk 0:02:32]}  Nc5 {[%clk 0:02:54]} 14. Rd1 {[%clk 0:02:26]}  d3 {[%clk 0:02:54]} 15. Qe3 {[%clk 0:02:19]}  Rd8 {[%clk 0:02:53]} 16. Nc3 {[%clk 0:02:13]}  Rb8 {[%clk 0:02:49]} 17. Nb5 {[%clk 0:01:57]}  Qb6 {[%clk 0:02:43]} 18. b4 {[%clk 0:01:43]}  a6 {[%clk 0:02:41]} 19. Nd6 {[%clk 0:01:13]}  Qxb4 {[%clk 0:02:32]} 20. Rab1 {[%clk 0:01:10]}  Qa5 {[%clk 0:02:30]} 21. Bf1 {[%clk 0:00:58]}  b5 {[%clk 0:02:18]} 22. Qxc5 {[%clk 0:00:54]}  Bxd6 {[%clk 0:02:09]} 23. exd6 {[%clk 0:00:52]}  Bb7 {[%clk 0:02:09]} 24. d7 {[%clk 0:00:46]}  Ra8 {[%clk 0:02:04]} 25. Bc7 {[%clk 0:00:45]}  Qxa2 {[%clk 0:02:00]} 26. Bxd8 {[%clk 0:00:45]}  Rxd8 {[%clk 0:02:01]} 27. Qe7 {[%clk 0:00:45]}  Qa5 {[%clk 0:01:53]} 28. Qe8+ {[%clk 0:00:45]} 1-0